fUSD/lending_fUSD_20240917
["ID","MTS","AMOUNT","RATE_DAILY","PERIOD"]
[338374439,1726575045781,-3558.0,0.00014,7]
[338374440,1726575045790,-1000.0,0.00014,2]
[338374441,1726575045800,-401.75412069,0.00014011,2]
[338374442,1726575045810,-167.27,0.00014048,2]
[338374443,1726575045819,-246.47,0.00014069,2]
[338374444,1726575045828,-17622.1539507,0.0001409,2]
[338374445,1726575045837,-11154.69,0.00014095,2]
[338374446,1726575045847,-5400.0,0.000141,5]
[338374447,1726575045857,-5252.397,0.0001414,2]
[338374448,1726575045868,-150.0,0.0001414,2]
[338374449,1726575045877,-1083.515,0.0001414,2]
[338374450,1726575045886,-33639.6222151,0.0001419,2]
[338374451,1726575045896,-17622.1539507,0.0001419,2]
[338374452,1726575045905,-51915.1298287,0.000142,2]
[338374453,1726575045915,-7300.0,0.000142,5]
[338374454,1726575045925,-401.75412069,0.00014233,2]
[338374455,1726575045935,-214.747403,0.00014247,2]
[338374456,1726575045945,-475.61089754,0.00014289,2]
[338374457,1726575045954,-33639.6222151,0.0001429,2]
[338374458,1726575045963,-88110.7697535,0.0001429,2]
[338374459,1726575045973,-2000.0,0.000143,15]
[338374460,1726575045982,-148059.63941235,0.000143,2]
[338374461,1726575045991,-9100.0,0.000143,5]
[338374462,1726575046000,-11331.65,0.00014345,2]
[338374463,1726575046011,-226.635,0.0001437,2]
[338374464,1726575046020,-581.8,0.0001437,2]
[338374465,1726575046030,-266.509,0.0001437,2]
[338374466,1726575046040,-35050.77856043,0.00014383,2]
[338374468,1726575046050,-827.56,0.00014384,2]
[338374469,1726575046059,-1800.0,0.000144,5]
[338374471,1726575046068,-401.75412069,0.00014456,2]
[338374472,1726575046077,-1800.0,0.000145,5]
[338374473,1726575046087,-1000.0,0.00014521,2]
[338374474,1726575046096,-1800.0,0.000146,5]
[338374475,1726575046105,-401.75412069,0.00014678,2]
[338374476,1726575046115,-2217.88866794,0.000147,2]
[338374477,1726575046125,-998.58,0.000147,2]
[338374478,1726575046134,-1800.0,0.000147,5]
[338374479,1726575046143,-162.1973949,0.00014767,2]
[338374480,1726575046153,-1000.0,0.00014784,2]
[338374481,1726575046162,-314.04,0.00014786,2]
[338374482,1726575046171,-35244.3079014,0.0001479,2]
[338374483,1726575046181,-6286.46860786,0.00014799,2]
[338374484,1726575046190,-6286.46860785,0.000148,2]
[338374485,1726575046200,-3000.0,0.000148,2]
[338374486,1726575046209,-5268.97759999,0.000148,2]
[338374487,1726575046219,-7500.0,0.000148,2]
[338374488,1726575046229,-6286.46860785,0.000148,2]
[338374489,1726575046238,-2100.0,0.000148,5]
[338374490,1726575046248,-500.0,0.00014873,2]
[338374491,1726575046258,-17622.1539507,0.00014889,2]
[338374492,1726575046267,-17622.1539507,0.00014889,2]
[338374493,1726575046276,-556794.9726005,0.00014899,5]
[338374494,1726575046286,-474.91456683,0.00014899,2]
[338374495,1726575046295,-353.084573,0.00014899,2]
[338374496,1726575046304,-353.084573,0.00014899,2]
[338374497,1726575046314,-6048.3413788,0.00014899,2]
[338374498,1726575046323,-2128.3051282,0.00014899,2]
[338374499,1726575046332,-26672.6433562,0.00014899,2]
[338374500,1726575046342,-1110251.43673659,0.000149,2]
[338374501,1726575046355,-29347.09902911,0.000149,2]
[338374502,1726575046376,-1507.22499999,0.000149,2]
[338374503,1726575047794,-1507.5,0.000149,2]
[338374504,1726575047835,-3634.67232653,0.000149,2]
[338374505,1726575047847,-123392.97472813,0.000149,2]
[338374506,1726575047860,-5986.007952,0.000149,2]
[338374507,1726575072434,2410.5411,0.00012549,2]
[338374511,1726575082827,5099.07767173,6.781e-05,7]
[338374512,1726575088225,1000.0,0.00010068,2]
[338374513,1726575090260,1000.0,0.00011438,2]
[338374514,1726575126967,532.86,0.00011752,2]
[338374515,1726575175196,500.0,0.00011164,2]
[338374519,1726575243093,500.0,0.00011164,2]
[338374520,1726575294412,-1000.0,0.00012808,2]
[338374521,1726575294433,-300.0,0.00012899,2]
[338374522,1726575294453,-449.488,0.000129,2]
[338374523,1726575294474,-2252.253,0.000129,2]
[338374524,1726575294494,-5998.259,0.000129,2]
[338374525,1726575295114,-5038.8361,0.000129,2]
[338374526,1726575295135,-4961.1639,0.000129,2]
[338374527,1726575295838,-10000.0,0.000129,2]
[338374528,1726575296440,-10000.0,0.000129,2]
[338374529,1726575297100,-10000.0,0.000129,2]
[338374530,1726575302136,-300.0,0.00012899,2]
[338374531,1726575302158,-4027.5546,0.000129,2]
[338374532,1726575302180,-3400.4454,0.000129,2]
[338374536,1726575347729,800.0,0.00010068,2]
[338374537,1726575348389,800.0,0.00011438,2]
[338374538,1726575411565,198.72,0.00010959,2]
[338374543,1726575509240,24727.58350293,0.0001,2]
[338374562,1726575828920,579.33,0.0001126,2]
[338374569,1726575924020,218.4,0.00010959,2]
[338374570,1726575942405,1050.0,0.00011,2]
[338374571,1726575955048,604.7,6.94e-05,2]
[338374572,1726575967578,1476.17248338,0.0001,2]
[338374591,1726576100645,290.78111545,0.000125,2]
[338374592,1726576114458,1016.73934842,0.00010998,2]
[338374593,1726576124125,42039.52951125,0.0001,2]
[338374654,1726576231839,-269.31,0.00012798,2]
[338374655,1726576231854,-545.68724662,0.00012808,2]
[338374656,1726576231871,-254.31275338,0.00012808,2]
[338374657,1726576231886,-627.21006079,0.000129,2]
[338374658,1726576233559,-127.90403921,0.000129,2]
[338374659,1726576233575,-586.55933061,0.00013,2]
[338374660,1726576233598,-960.92161359,0.00013,2]
[338374661,1726576233630,-1706.98,0.00013,2]
[338374662,1726576233648,-1335.27392991,0.00013,2]
[338374663,1726576233666,-393.3952172,0.00013,2]
[338374664,1726576233690,-1487.65788,0.00013,2]
[338374666,1726576233709,-3639.6573271,0.00013,2]
[338374672,1726576237859,-3974.5,0.00013,2]
[338374673,1726576237871,-449.59669731,0.00013,2]
[338374674,1726576237882,-902.15263318,0.00013,2]
[338374675,1726576237893,-5403.3429348,0.00013,2]
[338374676,1726576237904,-4446.08128561,0.00013,2]
[338374677,1726576237936,-845.57482597,0.00013,2]
[338374678,1726576237947,-10006.37556363,0.00013,2]
[338374679,1726576237958,-12411.30810843,0.00013,2]
[338374680,1726576237967,-184.85,0.00013036,2]
[338374681,1726576237976,-3173.88764666,0.000131,2]
[338374682,1726576237986,-400.0,0.000131,4]
[338374683,1726576237995,-800.0,0.000132,4]
[338374684,1726576238003,-1000.0,0.000132,2]
[338374685,1726576238013,-250.0,0.00013205,2]
[338374686,1726576238022,-166.86,0.00013284,2]
[338374687,1726576238031,-1200.0,0.000133,4]
[338374688,1726576238041,-162.58,0.00013354,2]
[338374689,1726576238050,-150.0,0.00013399,2]
[338374690,1726576238059,-1600.0,0.000134,4]
[338374691,1726576238068,-279.73361318,0.000135,4]
[338374692,1726576238081,-690.57513196,0.000135,4]
[338374693,1726576238091,-564.662132,0.000135,4]
[338374694,1726576238102,-565.02912286,0.000135,4]
[338374695,1726576238113,-178.34,0.00013509,2]
[338374696,1726576238124,-518.77886681,0.00013524,2]
[338374697,1726576238134,-60.55113319,0.00013524,2]
[338374698,1726576238144,-400.0,0.000136,4]
[338374699,1726576238153,-167.27,0.00013611,2]
[338374700,1726576238165,-299.99,0.00013699,2]
[338374701,1726576238174,-496.53,0.00013699,2]
[338374702,1726576238183,-400.0,0.000137,5]
[338374703,1726576238193,-400.0,0.000138,5]
[338374704,1726576238203,-701.11568,0.000139,2]
[338374705,1726576238212,-400.0,0.000139,5]
[338374707,1726576238221,-780.91,0.00014,2]
[338374709,1726576238230,-528.84,0.00014,2]
[338374711,1726576238240,-499.99,0.00014,2]
[338374713,1726576238249,-223.591,0.00014099,2]
[338374715,1726576238259,-167.841,0.00014099,2]
[338374717,1726576238269,-18193.38872604,0.000141,2]
[338374793,1726576238972,-1265.97342407,0.000141,2]
[338374796,1726576238984,-504.46416423,0.000141,2]
[338374799,1726576239005,-1879.79073718,0.000141,2]
[338374801,1726576239016,-19584.17613878,0.000141,2]
[338374803,1726576239028,-726.22550044,0.000141,2]
[338374805,1726576239039,-720.62291816,0.000141,2]
[338374807,1726576239050,-1613.10379908,0.000141,2]
[338374835,1726576239308,-64.12731845,0.00014178,2]
[338374838,1726576239331,-735.87268155,0.00014178,2]
[338374840,1726576239341,-3985.00392645,0.0001418,2]
[338374842,1726576239350,-279.123392,0.00014182,2]
[338374844,1726576239361,-1595.48310882,0.00014182,2]
[338374846,1726576239372,-2110.39742558,0.00014182,2]
[338374848,1726576239381,-3985.0039264,0.00014184,2]
[338374850,1726576239390,-2833.38270461,0.00014187,2]
[338374852,1726576239401,-1151.62122179,0.00014187,2]
[338374854,1726576239410,-1558.32372775,0.00014189,2]
[338374857,1726576239421,-2426.68019865,0.00014189,2]
[338374859,1726576239431,-1000.0,0.0001419,2]
[338374860,1726576239440,-304.37988106,0.0001419,2]
[338374861,1726576239449,-1466.51088904,0.00014191,2]
[338374862,1726576239460,-2518.49303736,0.00014191,2]
[338374863,1726576239471,-2064.76756264,0.00014193,2]
[338374864,1726576239482,-448.7075297,0.00014193,2]
[338374865,1726576239494,-974.16207443,0.00014193,2]
[338374866,1726576239505,-399.08923112,0.00014193,2]
[338374867,1726576239516,-98.27752851,0.00014193,2]
[338374868,1726576239525,-487.14067973,0.00014196,2]
[338374869,1726576239536,-1470.87908501,0.00014196,2]
[338374870,1726576239547,-394.12782113,0.00014196,2]
[338374871,1726576239559,-333.62128811,0.00014196,2]
[338374872,1726576239574,-1299.23505242,0.00014196,2]
[338374874,1726576239585,-8.51494757,0.00014198,2]
[338374876,1726576239597,-3006.44051846,0.00014198,2]
[338374878,1726576239608,-970.04846037,0.00014198,2]
[338374880,1726576239619,-5941.6019,0.000142,2]
[338374882,1726576239628,-150.35374544,0.000142,2]
[338374884,1726576239638,-380.80051019,0.000142,2]
[338374886,1726576239649,-2564.7511365,0.000142,2]
[338374888,1726576239661,-325.63320665,0.000142,2]
[338374890,1726576239676,-1731.86399153,0.000142,2]
[338374892,1726576239685,-162.14826699,0.000142,2]
[338374894,1726576239695,-217.24289957,0.000142,2]
[338374897,1726576239710,-7282.75710043,0.000142,2]
[338374899,1726576239720,-687.0,0.000142,2]
[338374901,1726576239730,-359.0,0.000142,2]
[338374903,1726576239740,-178.74207767,0.000142,2]
[338374905,1726576239750,-397.23485996,0.000142,2]
[338374907,1726576239760,-194.5596778,0.00014273,2]
[338374909,1726576239770,-160.27515508,0.00014273,2]
[338374912,1726576239780,-160.27516504,0.00014273,2]
[338374914,1726576239789,-151.54959301,0.0001428,2]
[338374916,1726576239800,-3100.0,0.0001428,2]
[338374918,1726576239811,-1483.78465413,0.0001428,2]
[338374959,1726576240191,-278.90148228,0.000142,2]
[338374962,1726576240203,-695.95800116,0.000142,2]
[338374964,1726576240214,-617.90060439,0.000142,2]
[338374978,1726576240347,-2392.24383857,0.000142,2]
[338374980,1726576240356,-6744.1767951,0.0001428,2]
[338374983,1726576240368,-80842.94004696,0.0001428,2]
[338374985,1726576240377,-500.0,0.0001428,2]
[338374988,1726576240386,-150.56,0.0001428,2]
[338374990,1726576240395,-773.74126147,0.0001428,2]
[338374992,1726576240404,-34858.69536424,0.0001429,2]
[338374997,1726576240442,-602.11151,0.0001429,2]
[338374999,1726576240452,-533.82,0.0001429,2]
[338375001,1726576240463,-1785.02281196,0.0001429,2]
[338375003,1726576240474,-381.03924014,0.0001429,2]
[338375006,1726576240489,-199738.38940766,0.0001429,2]
[338375008,1726576240498,-126879.508445,0.0001429,2]
[338375010,1726576240508,-150.56,0.0001429,2]
[338375012,1726576240517,-773.74126147,0.0001429,2]
[338375014,1726576240526,-773.74126147,0.0001429,2]
[338375016,1726576240536,-500.0,0.00014299,2]
[338375017,1726576240545,-500.0,0.00014299,2]
[338375019,1726576240554,-450.96651103,0.00014299,2]
[338375021,1726576240563,-161.21850122,0.00014299,2]
[338375023,1726576240572,-332.92762827,0.00014299,2]
[338375025,1726576240582,-1785.40713602,0.00014299,5]
[338375027,1726576240591,-4701.77881134,0.000143,2]
[338375029,1726576240600,-812768.72758827,0.000143,2]
[338375031,1726576240610,-9789202.13961465,0.000143,2]
[338375033,1726576240621,-106349.564449,0.000143,2]
[338375035,1726576240632,-191375.39769062,0.000143,2]
[338375038,1726576240643,-7651.91581175,0.000143,2]
[338375040,1726576240655,-13012.12270079,0.000143,2]
[338375042,1726576240666,-8405.759899,0.000143,2]
[338375044,1726576240678,-9837.1995,0.000143,2]
[338375047,1726576240697,-2495.58714316,0.000143,2]
[338375049,1726576240708,-1335.0,0.000143,2]
[338375051,1726576240719,-311.6,0.000143,2]
[338375054,1726576240731,-1955.73667818,0.000143,2]
[338375056,1726576240742,-588.209208,0.000143,2]
[338375058,1726576240754,-639.6,0.000143,2]
[338375061,1726576240781,-338.805,0.000143,2]
[338375064,1726576240793,-1279.32942339,0.000143,2]
[338375066,1726576240804,-3033.07094716,0.000143,2]
[338375068,1726576240816,-347.70615073,0.000143,2]
[338375070,1726576240827,-890.90712876,0.000143,2]
[338375072,1726576240838,-383.0020099,0.000143,2]
[338375076,1726576240867,-354.16960267,0.00013667,2]
[338375078,1726576240878,-250.13277065,0.00013667,2]
[338375273,1726576242939,-5.80143283,0.00013667,2]
[338375275,1726576242948,-28261.09425933,0.000143,2]
[338375277,1726576242959,-10620.16901075,0.000143,2]
[338375279,1726576242970,-3878.69,0.000143,2]
[338375284,1726576243003,-572.21,0.000143,2]
[338375286,1726576243014,-500.0,0.000143,2]
[338375288,1726576243024,-566.35561271,0.000143,2]
[338375290,1726576243036,-880242.64438629,0.000143,2]
[338375293,1726576243048,-473.25526323,0.000143,2]
[338375295,1726576243059,-942.66174752,0.000143,2]
[338375407,1726576244303,-337.27249606,0.000143,2]
[338375409,1726576244314,-10661.10414044,0.000143,2]
[338375411,1726576244326,-880.8,0.000143,2]
[338375414,1726576244339,-3224.73762716,0.000143,2]
[338375417,1726576244362,-23489.6,0.000143,2]
[338375419,1726576244373,-14606.66820628,0.000143,2]
[338375421,1726576244385,-263.95605343,0.000143,2]
[338375423,1726576244396,-300.0,0.000143,2]
[338375425,1726576244407,-673.14206966,0.000143,2]
[338375427,1726576244419,-1233.86,0.000143,2]
[338375429,1726576244430,-500.0,0.000143,2]
[338375431,1726576244442,-5024.77761419,0.000143,2]
[338375434,1726576244453,-23148.43827866,0.000143,2]
[338375436,1726576244465,-38874.24022035,0.000143,2]
[338375437,1726576244477,-17155.65647252,0.000143,2]
[338375439,1726576244488,-50066.70539115,0.000143,2]
[338375441,1726576244504,-537.16417105,0.000143,2]
[338375443,1726576244516,-12980.0,0.000143,2]
[338375446,1726576244527,-28853.42073815,0.000143,2]
[338375448,1726576244539,-9040.40493919,0.000143,2]
[338375450,1726576244551,-938.72103182,0.000143,2]
[338375452,1726576244562,-801.46196804,0.000143,2]
[338375454,1726576244574,-2759.5004898,0.000143,2]
[338375548,1726576245886,-1044.13630488,0.00014014,2]
[338375550,1726576245895,-3673.14910536,0.000143,2]
[338375551,1726576245906,-585.22668101,0.000143,2]
[338375553,1726576245918,-1346.51356479,0.000143,2]
[338375555,1726576245929,-12623.76208045,0.000143,2]
[338375557,1726576245940,-4434.87946831,0.000143,2]
[338375558,1726576245951,-432.05724792,0.000143,2]
[338375564,1726576246013,-35993.77023877,0.000143,2]
[338375566,1726576246024,-16288.40638518,0.000143,2]
[338375567,1726576246035,-447772.56581409,0.000143,2]
[338375569,1726576246046,-2285.84891763,0.000143,2]
[338375571,1726576246057,-26977.16239601,0.000143,2]
[338375573,1726576246068,-456.95008335,0.000143,2]
[338375580,1726576246159,-20754.41174048,0.000143,2]
[338375581,1726576246173,-670.56,0.000143,2]
[338375584,1726576246192,-3075.0,0.000143,2]
[338375585,1726576246203,-267.22567297,0.000143,2]
[338375587,1726576246214,-515.83635347,0.000143,2]
[338375589,1726576246225,-2088.22903762,0.000143,2]
[338375591,1726576246236,-400.57,0.000143,2]
[338375593,1726576246254,-612.34305062,0.000143,2]
[338375595,1726576246265,-451.23409272,0.000143,2]
[338375596,1726576246276,-755.02521014,0.000143,2]
[338375598,1726576246287,-343.68665496,0.000143,2]
[338375600,1726576246303,-4011.40893523,0.000143,2]
[338375603,1726576246322,-852.18109769,0.000143,2]
[338375745,1726576273664,3304.39669419,6.781e-05,7]
[338375746,1726576275541,600.0,0.00010068,2]
[338375747,1726576277145,600.0,0.00011438,2]
[338375748,1726576342172,595.45,0.00011633,2]
[338375749,1726576346813,-501.90003323,0.00015,30]
[338375750,1726576346844,-1264.446442,0.00015,30]
[338375751,1726576346875,-500.0,0.0001513,30]
[338375752,1726576346898,-500.0,0.0001513,30]
[338375753,1726576346924,-500.0,0.0001513,30]
[338375754,1726576346946,-502.81003422,0.0001513,30]
[338375755,1726576346968,-500.0,0.0001513,30]
[338375756,1726576346992,-500.0,0.0001513,30]
[338375757,1726576347014,-500.0,0.0001513,30]
[338375758,1726576347039,-506.7054449,0.0001513,30]
[338375759,1726576347061,-500.0,0.0001513,30]
[338375760,1726576347086,-500.0,0.0001513,30]
[338375761,1726576347109,-697.18224908,0.0001513,30]
[338375762,1726576347131,-500.99008545,0.0001513,30]
[338375763,1726576347153,-500.0,0.0001513,30]
[338375764,1726576347179,-500.0,0.0001513,30]
[338375765,1726576347204,-500.0,0.0001513,30]
[338375766,1726576347227,-500.0,0.0001513,30]
[338375767,1726576347249,-500.0,0.0001513,30]
[338375768,1726576347499,-500.0,0.0001513,30]
[338375769,1726576347525,-500.0,0.0001513,30]
[338375770,1726576347547,-500.0,0.0001513,30]
[338375771,1726576347570,-500.0,0.0001513,30]
[338375772,1726576347592,-500.0,0.0001513,30]
[338375773,1726576347614,-500.0,0.0001513,30]
[338375774,1726576347636,-500.0,0.0001513,30]
[338375775,1726576347660,-500.0,0.0001513,30]
[338375776,1726576347682,-707.38540224,0.0001513,30]
[338375777,1726576347705,-948.53297134,0.0001513,30]
[338375778,1726576347728,-500.0,0.0001513,30]
[338375779,1726576347754,-477.21,0.00016658,30]
[338375780,1726576347786,-477.21,0.00019242,30]
[338375781,1726576347813,-4844.34604072,0.0002,30]
[338375782,1726576347834,-4171.20927165,0.0002,30]
[338375783,1726576347857,-1512.50455391,0.0002,30]
[338375784,1726576347883,-477.21,0.00021826,30]
[338375785,1726576347913,-2110.0,0.00024,30]
[338375786,1726576347937,-477.21,0.0002441,30]
[338375787,1726576347959,-2110.0,0.000245,30]
[338375788,1726576347984,-2100.0,0.00025,30]
[338375789,1726576348006,-2110.0,0.00025,30]
[338375790,1726576348028,-500.0,0.00025,30]
[338375791,1726576348051,-500.0,0.00025,30]
[338375792,1726576348072,-500.0,0.00025,30]
[338375793,1726576348096,-500.0,0.00025,30]
[338375794,1726576348119,-500.77584184,0.00025,30]
[338375795,1726576348142,-500.0,0.00025,30]
[338375796,1726576348166,-500.0,0.00025,30]
[338375797,1726576348190,-500.0,0.00025,30]
[338375798,1726576348213,-500.0,0.00025,30]
[338375799,1726576348236,-500.0,0.00025,30]
[338375800,1726576348260,-500.0,0.00025,30]
[338375801,1726576348283,-500.0,0.00025,30]
[338375802,1726576348305,-500.0,0.00025,30]
[338375803,1726576348326,-500.0,0.00025,30]
[338375804,1726576348349,-500.0,0.00025,30]
[338375805,1726576348371,-500.0,0.00025,30]
[338375806,1726576348392,-500.0,0.00025,30]
[338375807,1726576348414,-500.0,0.00025,30]
[338375808,1726576348436,-500.0,0.00025,30]
[338375809,1726576348458,-500.0,0.00025,30]
[338375810,1726576348480,-500.0,0.00025,30]
[338375811,1726576348503,-500.0,0.00025,30]
[338375812,1726576348526,-500.0,0.00025,30]
[338375813,1726576348548,-500.0,0.00025,30]
[338375814,1726576348571,-500.0,0.00025,30]
[338375815,1726576348594,-500.0,0.00025,30]
[338375816,1726576348617,-500.0,0.00025,30]
[338375817,1726576348640,-500.0,0.00025,30]
[338375818,1726576348664,-500.0,0.00025,30]
[338375819,1726576348687,-500.0,0.00025,60]
[338375820,1726576348710,-500.0,0.00025,60]
[338375821,1726576348733,-500.0,0.00025,60]
[338375822,1726576348755,-500.0,0.00025,60]
[338375823,1726576348778,-500.0,0.00025,60]
[338375824,1726576348800,-500.0,0.00025,60]
[338375825,1726576348823,-500.0,0.00025,60]
[338375826,1726576348846,-500.0,0.00025,60]
[338375827,1726576348869,-500.0,0.00025,60]
[338375828,1726576348893,-500.0,0.00025,60]
[338375829,1726576348918,-500.0,0.00025,60]
[338375830,1726576348940,-500.0,0.00025,60]
[338375831,1726576348964,-214.52058397,0.00025,60]
[338375832,1726576348988,-500.0,0.00025,60]
[338375833,1726576349012,-500.0,0.00025,60]
[338375834,1726576349036,-500.0,0.00025,60]
[338375835,1726576349058,-500.0,0.00025,60]
[338375836,1726576349081,-500.0,0.00025,60]
[338375837,1726576349104,-500.0,0.00025,60]
[338375838,1726576349127,-500.0,0.00025,60]
[338375839,1726576349150,-500.0,0.00025,60]
[338375840,1726576349175,-500.0,0.00025,60]
[338375841,1726576349201,-500.0,0.00025,60]
[338375842,1726576349223,-500.0,0.00025,60]
[338375843,1726576349248,-500.0,0.00025,60]
[338375844,1726576349275,-308.40091998,0.00025,60]
[338375845,1726576349300,-500.0,0.00025,60]
[338375846,1726576349322,-500.0,0.00025,60]
[338375847,1726576349344,-500.0,0.00025,60]
[338375848,1726576349367,-500.0,0.00025,60]
[338375849,1726576349390,-500.0,0.00025,60]
[338375850,1726576349418,-500.0,0.00025,60]
[338375851,1726576349440,-500.0,0.00025,60]
[338375852,1726576349463,-545.09296271,0.00025,60]
[338375853,1726576349485,-500.0,0.00025,60]
[338375854,1726576349507,-500.0,0.00025,60]
[338375855,1726576349529,-500.0,0.00025,60]
[338375856,1726576349551,-500.0,0.00025,60]
[338375857,1726576349777,-500.0,0.00025,60]
[338375858,1726576349801,-500.0,0.00025,60]
[338375859,1726576349824,-500.0,0.00025,60]
[338375860,1726576349848,-500.0,0.00025,60]
[338375861,1726576349871,-500.0,0.00025,60]
[338375862,1726576349894,-532.15848498,0.00025,60]
[338375863,1726576349918,-500.0,0.00025,60]
[338375864,1726576349940,-500.0,0.00025,60]
[338375865,1726576349963,-500.0,0.00025,60]
[338375866,1726576349986,-500.0,0.00025,60]
[338375867,1726576350008,-500.0,0.00025,60]
[338375868,1726576350032,-500.0,0.00025,60]
[338375869,1726576350055,-500.0,0.00025,60]
[338375870,1726576350081,-500.0,0.00025,60]
[338375871,1726576350106,-500.0,0.00025,60]
[338375872,1726576350131,-500.0,0.00025,60]
[338375873,1726576350154,-500.0,0.00025,60]
[338375874,1726576350182,-500.0,0.00025,60]
[338375875,1726576350206,-500.0,0.00025,60]
[338375876,1726576350229,-500.0,0.00025,60]
[338375877,1726576350254,-500.0,0.00025,60]
[338375878,1726576350280,-500.0,0.00025,60]
[338375879,1726576350303,-500.0,0.00025,60]
[338375880,1726576350327,-500.0,0.00025,60]
[338375881,1726576350353,-500.0,0.00025,60]
[338375882,1726576350376,-500.0,0.00025,60]
[338375883,1726576350399,-500.0,0.00025,60]
[338375884,1726576350422,-500.0,0.00025,60]
[338375885,1726576350445,-500.0,0.00025,60]
[338375886,1726576350466,-500.0,0.00025,60]
[338375887,1726576350489,-500.0,0.00025,60]
[338375888,1726576350512,-500.0,0.00025,60]
[338375889,1726576350534,-500.0,0.00025,60]
[338375890,1726576350556,-500.0,0.00025,60]
[338375891,1726576350579,-500.0,0.00025,60]
[338375892,1726576350601,-361.98934201,0.00025,60]
[338375893,1726576350623,-500.0,0.00025,60]
[338375894,1726576350645,-500.0,0.00025,60]
[338375895,1726576350670,-500.0,0.00025,60]
[338375896,1726576350699,-500.0,0.00025,60]
[338375897,1726576350722,-500.0,0.00025,60]
[338375898,1726576350746,-500.0,0.00025,60]
[338375899,1726576350768,-500.0,0.00025,60]
[338375900,1726576350790,-500.0,0.00025,60]
[338375901,1726576350814,-500.0,0.00025,60]
[338375902,1726576350838,-500.0,0.00025,60]
[338375903,1726576350861,-500.0,0.00025,60]
[338375904,1726576350884,-500.0,0.00025,60]
[338375905,1726576350906,-500.0,0.00025,60]
[338375906,1726576350932,-500.0,0.00025,60]
[338375907,1726576350954,-500.0,0.00025,60]
[338375908,1726576350984,-500.0,0.00025,60]
[338375909,1726576351030,-500.0,0.00025,60]
[338375910,1726576351076,-272.15258714,0.00025,60]
[338375911,1726576351115,-500.0,0.00025,60]
[338375912,1726576351164,-500.0,0.00025,60]
[338375913,1726576351416,-500.0,0.00025,60]
[338375914,1726576351455,-500.0,0.00025,60]
[338375915,1726576351499,-500.0,0.00025,60]
[338375916,1726576351537,-500.0,0.00025,60]
[338375917,1726576351575,-441.22930813,0.00025,60]
[338375918,1726576351612,-500.0,0.00025,60]
[338375919,1726576351650,-500.0,0.00025,60]
[338375920,1726576351695,-500.0,0.00025,60]
[338375921,1726576351733,-500.0,0.00025,60]
[338375922,1726576351770,-500.0,0.00025,60]
[338375923,1726576351807,-500.0,0.00025,60]
[338375924,1726576351843,-500.0,0.00025,60]
[338375925,1726576351879,-500.0,0.00025,60]
[338375926,1726576351917,-500.0,0.00025,60]
[338375927,1726576351954,-500.0,0.00025,60]
[338375928,1726576351991,-500.0,0.00025,60]
[338375929,1726576352028,-500.0,0.00025,60]
[338375930,1726576352067,-500.0,0.00025,60]
[338375931,1726576352103,-500.0,0.00025,60]
[338375932,1726576352142,-500.0,0.00025,60]
[338375933,1726576352180,-500.0,0.00025,60]